fUST/lending_fUST_20250912
["ID","MTS","AMOUNT","RATE_DAILY","PERIOD"]
[385149644,1757673076830,-496.8,0.0002,2]
[385149645,1757673076842,-480.95,0.0002,2]
[385149646,1757673076851,-2550.41060449,0.0002,2]
[385149647,1757673076860,-495.04,0.0002,2]
[385149648,1757673076870,-521.37,0.0002,2]
[385149649,1757673076880,-506.34,0.0002,2]
[385149650,1757673076892,-3449.91400512,0.0002,2]
[385149651,1757673076902,-606.23098977,0.0002,2]
[385149652,1757673076912,-951.8139254,0.0002,2]
[385149653,1757673076924,-1363.60833699,0.0002,2]
[385149654,1757673076934,-552.86062187,0.0002,2]
[385149655,1757673076945,-745.76853827,0.0002,2]
[385149656,1757673076954,-607.26682951,0.0002,2]
[385149657,1757673076963,-1397.05950389,0.0002,2]
[385149658,1757673076974,-596.58101126,0.0002,2]
[385149659,1757673076984,-851.33247012,0.0002,2]
[385149660,1757673076995,-4670.84641042,0.0002,2]
[385149661,1757673077006,-558.05141684,0.0002,2]
[385149662,1757673077018,-536.99979318,0.0002,2]
[385149663,1757673077032,-531.81452551,0.0002,2]
[385149664,1757673077043,-514.1662264,0.0002,2]
[385149665,1757673077054,-613.58,0.0002,2]
[385149666,1757673077063,-544.9,0.0002,2]
[385149667,1757673077074,-680.0,0.0002,2]
[385149668,1757673077083,-600.23,0.0002,2]
[385149669,1757673077093,-782.99,0.0002,2]
[385149670,1757673077104,-534.04,0.0002,2]
[385149671,1757673077114,-640.0,0.0002,2]
[385149672,1757673077124,-500.0,0.00020186,2]
[385149673,1757673077133,-1092.852329,0.00020187,2]
[385149674,1757673077143,-7378.2205263,0.00020299,2]
[385149675,1757673077152,-188.4666082,0.00020301,2]
[385149676,1757673077161,-958.220253,0.00020548,2]
[385149677,1757673077171,-200.0,0.0002061,2]
[385149678,1757673077180,-7378.2205263,0.00020699,2]
[385149679,1757673077191,-4761.90329946,0.00020714,2]
[385149680,1757673077201,-577.0,0.0002077,2]
[385149681,1757673077211,-7378.2205263,0.00021098,2]
[385149682,1757673077220,-500.0,0.00021195,2]
[385149683,1757673077230,-960.528,0.00021197,2]
[385149684,1757673077239,-634.0,0.00021234,2]
[385149685,1757673077249,-2155.0,0.00021234,2]
[385149686,1757673077258,-227.0,0.00021286,2]
[385149687,1757673077267,-227.0,0.00021296,2]
[385149688,1757673077276,-227.0,0.00021316,2]
[385149689,1757673077286,-227.0,0.00021321,2]
[385149690,1757673077295,-227.0,0.00021342,2]
[385149691,1757673077305,-227.0,0.00021356,2]
[385149692,1757673077314,-227.0,0.00021375,2]
[385149693,1757673077324,-227.0,0.00021404,2]
[385149694,1757673077336,-227.0,0.00021466,2]
[385149695,1757673077345,-7378.2205263,0.00021498,2]
[385149696,1757673077356,-227.0,0.00021542,2]
[385149697,1757673077365,-227.0,0.00021555,2]
[385149698,1757673077374,-1324.91871614,0.000216,2]
[385149699,1757673077383,-227.0,0.00021617,2]
[385149700,1757673077393,-227.0,0.00021644,2]
[385149701,1757673077403,-227.0,0.00021664,2]
[385149702,1757673077411,-227.0,0.00021681,2]
[385149703,1757673077420,-227.0,0.00021701,2]
[385149704,1757673077430,-227.0,0.00021738,2]
[385149705,1757673077439,-227.0,0.00021746,2]
[385149706,1757673077448,-227.0,0.00021765,2]
[385149707,1757673077457,-227.0,0.00021823,2]
[385149708,1757673077466,-7378.2205263,0.00021897,2]
[385149709,1757673077475,-3000.0,0.000219,2]
[385149710,1757673077485,-3000.0,0.0002191,2]
[385149711,1757673077494,-299.019904,0.00021918,2]
[385149712,1757673077504,-200.0,0.00021918,2]
[385149713,1757673077513,-3000.0,0.0002192,2]
[385149714,1757673077523,-3000.0,0.0002193,2]
[385149715,1757673077534,-227.0,0.00021933,2]
[385149716,1757673077543,-3000.0,0.0002194,2]
[385149717,1757673077554,-1000.0,0.00021943,20]
[385149718,1757673077564,-227.0,0.00021949,2]
[385149720,1757673077573,-3000.0,0.0002195,2]
[385149721,1757673077582,-3000.0,0.0002196,2]
[385149722,1757673077591,-3000.0,0.0002197,2]
[385149723,1757673077600,-3000.0,0.0002198,2]
[385149724,1757673077609,-4761.90329946,0.0002199,2]
[385149725,1757673077618,-3000.0,0.0002199,2]
[385149726,1757673077627,-10980.38,0.00022,7]
[385149727,1757673077636,-92804.08,0.00022,7]
[385149728,1757673077645,-2760.09,0.00022,7]
[385149729,1757673077655,-1002.48,0.00022,7]
[385149730,1757673077664,-1687.89,0.00022,7]
[385149731,1757673077673,-2006.88,0.00022,2]
[385149732,1757673077682,-3000.0,0.00022,2]
[385149733,1757673077692,-417.15472785,0.00022,7]
[385149734,1757673077701,-160.0,0.00022,7]
[385149735,1757673077710,-531.04384426,0.00022,7]
[385149736,1757673077719,-160.0,0.00022,7]
[385149737,1757673077728,-201.0,0.00022,2]
[385149738,1757673077737,-643.32,0.00022,2]
[385149739,1757673077747,-227.0,0.00022005,2]
[385149740,1757673077755,-3000.0,0.0002201,2]
[385149741,1757673077765,-200.0,0.0002201,3]
[385149742,1757673077774,-3000.0,0.0002202,2]
[385149743,1757673077783,-3000.0,0.0002203,2]
[385149744,1757673077792,-3000.0,0.0002204,2]
[385149745,1757673077801,-3000.0,0.0002205,2]
[385149746,1757673077810,-3000.0,0.0002206,2]
[385149747,1757673077819,-3000.0,0.0002207,2]
[385149748,1757673077828,-3000.0,0.0002208,2]
[385149749,1757673077837,-3000.0,0.0002209,2]
[385149750,1757673077846,-3000.0,0.000221,2]
[385149751,1757673077856,-227.0,0.00022105,2]
[385149752,1757673077865,-3000.0,0.0002211,2]
[385149753,1757673077874,-3000.0,0.0002212,2]
[385149754,1757673077884,-3000.0,0.0002213,2]
[385149755,1757673077893,-3000.0,0.0002214,2]
[385149756,1757673077902,-3000.0,0.0002215,2]
[385149757,1757673077911,-3000.0,0.0002216,2]
[385149758,1757673077920,-3000.0,0.0002217,2]
[385149759,1757673077930,-3000.0,0.0002218,2]
[385149760,1757673077940,-3000.0,0.0002219,2]
[385149761,1757673077950,-3000.0,0.000222,2]
[385149762,1757673077960,-3000.0,0.0002221,2]
[385149763,1757673077970,-3000.0,0.0002222,2]
[385149764,1757673077980,-3000.0,0.0002223,2]
[385149765,1757673077991,-3000.0,0.0002224,2]
[385149766,1757673078003,-3000.0,0.0002225,2]
[385149767,1757673078013,-3000.0,0.0002226,2]
[385149768,1757673078025,-3000.0,0.0002227,2]
[385149769,1757673078035,-3000.0,0.0002228,2]
[385149770,1757673078044,-3000.0,0.0002229,2]
[385149771,1757673078058,-7378.2205263,0.00022297,2]
[385149772,1757673078068,-3000.0,0.000223,2]
[385149773,1757673078078,-3000.0,0.0002231,2]
[385149774,1757673078088,-3000.0,0.0002232,2]
[385149775,1757673078098,-3000.0,0.0002233,2]
[385149776,1757673078108,-4131.182992,0.0002234,2]
[385149777,1757673078118,-300.0,0.00022466,2]
[385149778,1757673078129,-200.01945567,0.00022466,2]
[385149779,1757673078138,-7378.2205263,0.00022696,2]
[385149780,1757673078148,-144542.15719299,0.00022752,2]
[385149781,1757673078157,-27509.20118396,0.000228,2]
[385149782,1757673078532,-480.0,0.00013698,2]
[385149783,1757673078543,-480.0,0.00013698,2]
[385149784,1757673078553,-480.0,0.00013698,2]
[385149785,1757673078563,-480.0,0.00013972,2]
[385149786,1757673078573,-480.0,0.00014246,2]
[385149787,1757673078583,-3018.30450798,0.000228,2]
[385149788,1757673078602,-16500.0,0.000228,2]
[385149789,1757673078621,-480.0,0.00013698,2]
[385149790,1757673078630,-39888.16988717,0.000228,2]
[385149791,1757673078639,-643.32,0.00022809,2]
[385149792,1757673078648,-45521.58342241,0.00023,5]
[385149793,1757673078658,-283.0,0.00023,7]
[385149794,1757673078668,-450.0,0.00023014,2]
[385149795,1757673078677,-7378.2205263,0.00023095,2]
[385149796,1757673078686,-4761.90329946,0.00023265,2]
[385149797,1757673078697,-1305.0,0.00023267,3]
[385149798,1757673078706,-1305.0,0.00023267,3]
[385149799,1757673078715,-1097.81222968,0.0002328,5]
[385149800,1757673078725,-500.0,0.00023287,2]
[385149801,1757673078734,-1259.66,0.00023287,2]
[385149802,1757673078743,-179.1532043,0.00023288,2]
[385149803,1757673078752,-151.0,0.00023288,7]
[385149804,1757673078762,-151.0,0.00023288,7]
[385149805,1757673078771,-151.0,0.00023288,7]
[385149806,1757673078780,-151.0,0.00023288,7]
[385149807,1757673078789,-151.0,0.00023288,7]
[385149808,1757673078798,-1687.89,0.000233,7]
[385149809,1757673078808,-2000.0,0.000233,2]
[385149810,1757673078817,-5136.53645275,0.00023307,2]
[385149811,1757673078826,-5000.0,0.00023307,2]
[385149812,1757673078834,-5000.0,0.00023307,2]
[385149813,1757673078844,-5000.0,0.00023307,2]
[385149814,1757673078853,-5000.0,0.00023307,2]
[385149815,1757673078864,-2000.0,0.000234,2]
[385149816,1757673078873,-2000.0,0.000234,2]
[385149817,1757673078883,-200.0,0.0002341,7]
[385149818,1757673078892,-7378.2205263,0.00023495,2]
[385149819,1757673078901,-1161.48252724,0.000235,5]
[385149820,1757673078910,-1000.0,0.000235,2]
[385149821,1757673078920,-318.71,0.00023561,2]
[385149822,1757673078929,-318.71,0.00023561,2]
[385149823,1757673078938,-318.71,0.00023561,2]
[385149824,1757673078948,-318.71,0.00023561,2]
[385149825,1757673078957,-318.71,0.00023561,2]
[385149826,1757673078967,-318.71,0.00023561,2]
[385149827,1757673078976,-318.71,0.00023561,2]
[385149828,1757673078986,-318.71,0.00023561,2]
[385149829,1757673078995,-318.71,0.00023561,2]
[385149830,1757673079005,-318.71,0.00023561,2]
[385149831,1757673079015,-318.71,0.00023561,2]
[385149832,1757673079028,-318.71,0.00023561,2]
[385149833,1757673079039,-318.71,0.00023561,2]
[385149834,1757673079048,-318.71,0.00023561,2]
[385149835,1757673079059,-318.71,0.00023561,2]
[385149836,1757673079068,-318.71,0.00023561,2]
[385149837,1757673079078,-318.71,0.00023561,2]
[385149838,1757673079087,-318.71,0.00023561,2]
[385149839,1757673079097,-318.71,0.00023561,2]
[385149840,1757673079107,-318.71,0.00023561,2]
[385149841,1757673079116,-318.71,0.00023561,2]
[385149842,1757673079125,-264.53045671,0.00023561,2]
[385149843,1757673079144,-480.0,0.0001452,2]
[385149844,1757673079154,-54.17954329,0.00023561,2]
[385149845,1757673079164,-318.71,0.00023561,2]
[385149846,1757673079174,-318.82145861,0.00023561,2]
[385149847,1757673079184,-600.0,0.00023562,2]
[385149848,1757673079194,-162.79830867,0.00023589,2]
[385149849,1757673079204,-643.32,0.00023617,2]
[385149850,1757673079213,-1000.0,0.0002362,5]
[385149851,1757673079222,-1000.0,0.0002364,5]
[385149852,1757673079232,-1000.0,0.0002366,5]
[385149853,1757673079241,-1000.0,0.0002368,5]
[385149854,1757673079250,-1000.0,0.000237,5]
[385149855,1757673079259,-1000.0,0.0002372,5]
[385149856,1757673079270,-1000.0,0.0002374,5]
[385149857,1757673079279,-1000.0,0.0002376,5]
[385149858,1757673079288,-1000.0,0.0002378,5]
[385149859,1757673079298,-432.27170071,0.0002378,5]
[385149860,1757673079311,-376.68,0.0002378,5]
[385149868,1757673098882,159.379614,0.00024,30]
[385149869,1757673117828,1000.0,0.00018595,20]
[385149870,1757673155316,174.42223701,0.000151,7]
[385149872,1757673242849,300.0,0.00013497,2]
[385149873,1757673272585,180.60812812,0.00013497,2]
[385149874,1757673272617,285.27450228,0.00013497,2]
[385149875,1757673273953,500.0,0.00013497,2]
[385149876,1757673273988,500.0,0.00013497,2]
[385149877,1757673274020,500.0,0.00013497,2]
[385149878,1757673274050,500.0,0.00013497,2]
[385149879,1757673274078,620.0,0.00013497,2]
[385149880,1757673274109,500.0,0.00013497,2]
[385149881,1757673274143,500.0,0.00013497,2]
[385149882,1757673274171,500.0,0.00013497,2]
[385149883,1757673274228,156.01853738,0.00013497,2]
[385149886,1757673302419,300.0,0.00013497,2]
[385149887,1757673302472,300.0,0.00013497,2]
[385149888,1757673303062,300.0,0.00013497,2]
[385149889,1757673304132,687.0,0.00013497,2]
[385149892,1757673363132,300.0,0.00013497,2]
[385149895,1757673422730,156.0,0.00013497,2]
[385149896,1757673431690,1200.0,0.00013497,2]
[385149901,1757673485225,151.0,0.000132,2]
[385149902,1757673485810,151.0,0.000127,2]
[385149903,1757673576174,500.0,0.00028466,60]
[385149904,1757673576433,500.0,0.00028466,60]
[385149905,1757673576699,500.0,0.00028466,60]
[385149906,1757673576924,500.0,0.00028466,60]
[385149907,1757673577154,500.0,0.00028466,60]
[385149908,1757673577404,500.0,0.00028466,60]
[385149909,1757673577644,500.0,0.00028466,60]
[385149910,1757673577883,298.836658,0.00028466,60]
[385149912,1757673692382,163.27744421,0.000151,7]
[385149925,1757673733805,1200.0,0.00013497,2]
[385149932,1757673847156,10000.0,0.00024,30]
[385149941,1757673985741,213.10883222,0.00013498,2]
[385149942,1757673985762,288.89116778,0.00013498,2]
[385149955,1757674033445,1200.0,0.00013497,2]
[385150009,1757674231831,-47201.21742028,0.00013498,2]
[385150010,1757674231843,-93037.01260759,0.00013498,2]
[385150011,1757674231853,-828.67041553,0.00013598,2]
[385150012,1757674231863,-1000.0,0.00013598,2]
[385150013,1757674231873,-151.0,0.000136,2]
[385150014,1757674231883,-502.12426079,0.00013673,2]
[385150015,1757674231893,-500.0,0.00013673,2]
[385150016,1757674231902,-500.0,0.00013673,2]
[385150017,1757674231912,-500.0,0.00013673,2]
[385150018,1757674231921,-500.0,0.00013673,2]
[385150019,1757674231930,-500.0,0.00013673,2]
[385150020,1757674231939,-500.0,0.00013673,2]
[385150021,1757674231949,-495.94810167,0.00013673,2]
[385150022,1757674231959,-501.15776765,0.00013673,2]
[385150025,1757674231969,-160.0,0.00013673,2]
[385150028,1757674231978,-500.0,0.00013673,2]
[385150031,1757674231988,-448.65561752,0.00013673,2]
[385150033,1757674231997,-500.0,0.00013673,2]
[385150034,1757674232007,-500.0,0.00013673,2]
[385150036,1757674232017,-500.0,0.00013673,2]
[385150038,1757674232026,-500.0,0.00013673,2]
[385150040,1757674232037,-500.0,0.00013673,2]
[385150042,1757674232046,-500.0,0.00013673,2]
[385150045,1757674232055,-542.03954474,0.00013673,2]
[385150047,1757674232065,-501.30639272,0.00013673,2]
[385150048,1757674232075,-500.0,0.00013673,2]
[385150050,1757674232085,-500.0,0.00013673,2]
[385150052,1757674232094,-500.0,0.00013673,2]
[385150054,1757674232105,-295.22863629,0.00013673,2]
[385150056,1757674232114,-500.0,0.00013673,2]
[385150058,1757674232124,-500.43853504,0.00013673,2]
[385150060,1757674232133,-500.0,0.00013673,2]
[385150062,1757674232143,-507.30832891,0.00013673,2]
[385150064,1757674232153,-500.0,0.00013673,2]
[385150066,1757674232163,-258.37405019,0.00013673,2]
[385150067,1757674232172,-501.21061556,0.00013673,2]
[385150069,1757674232182,-168.06676321,0.00013673,2]
[385150071,1757674232191,-503.3941154,0.00013673,2]
[385150073,1757674232202,-50000.0,0.00013673,2]
[385150075,1757674232211,-155.0,0.00013697,2]
[385150077,1757674232221,-483.43614104,0.00013698,2]
[385150079,1757674232232,-483.64241548,0.00013698,2]
[385150081,1757674232242,-277.15210816,0.00013698,2]
[385150083,1757674232251,-480.0,0.00013698,2]
[385150085,1757674232260,-480.0,0.00013698,2]
[385150087,1757674232270,-480.0,0.00013698,2]
[385150089,1757674232279,-480.0,0.00013698,2]
[385150091,1757674232289,-480.0,0.00013698,2]
[385150093,1757674232298,-387.03732659,0.00013698,2]
[385150095,1757674232307,-480.0,0.00013698,2]
[385150097,1757674232317,-488.90367269,0.00013698,2]
[385150099,1757674232327,-480.0,0.00013698,2]
[385150101,1757674232336,-480.0,0.00013698,2]
[385150103,1757674232345,-387.62730089,0.00013698,2]
[385150105,1757674232355,-500.0,0.00013698,2]
[385150107,1757674232365,-491.72678275,0.00013698,2]
[385150109,1757674232374,-480.0,0.00013698,2]
[385150111,1757674232384,-480.0,0.00013698,2]
[385150113,1757674232393,-480.0,0.00013698,2]
[385150115,1757674232404,-480.0,0.00013698,2]
[385150117,1757674232414,-480.0,0.00013698,2]
[385150120,1757674232424,-480.0,0.00013698,2]
[385150122,1757674232434,-480.0,0.00013698,2]
[385150124,1757674232443,-480.0,0.00013698,2]
[385150126,1757674232453,-483.69540513,0.00013698,2]
[385150128,1757674232463,-193.47136876,0.00013698,2]
[385150129,1757674232473,-486.26986262,0.00013698,2]
[385150131,1757674232482,-480.0,0.00013698,2]
[385150133,1757674232492,-480.0,0.00013698,2]
[385150135,1757674232502,-480.0,0.00013698,2]
[385150137,1757674232511,-482.39625531,0.00013698,2]
[385150139,1757674232521,-480.0,0.00013698,2]
[385150141,1757674232531,-482.51337109,0.00013698,2]
[385150142,1757674232541,-480.0,0.00013698,2]
[385150144,1757674232551,-480.0,0.00013698,2]
[385150146,1757674232562,-511.98257675,0.00013698,2]
[385150147,1757674232572,-480.0,0.00013698,2]
[385150150,1757674232581,-480.0,0.00013698,2]
[385150151,1757674232590,-480.0,0.00013698,2]
[385150153,1757674232603,-480.0,0.00013698,2]
[385150154,1757674232612,-480.0,0.00013698,2]
[385150155,1757674232621,-480.74820718,0.00013698,2]
[385150156,1757674232630,-480.0,0.00013698,2]
[385150157,1757674232640,-480.0,0.00013698,2]
[385150158,1757674232649,-480.0,0.00013698,2]
[385150159,1757674232658,-480.0,0.00013698,2]
[385150160,1757674232667,-480.0,0.00013698,2]
[385150161,1757674232677,-200.25943946,0.00013698,2]
[385150162,1757674232686,-480.0,0.00013698,2]
[385150163,1757674232695,-480.0,0.00013698,2]
[385150164,1757674232703,-482.15777201,0.00013698,2]
[385150165,1757674232712,-480.0,0.00013698,2]
[385150166,1757674232725,-480.0,0.00013698,2]
[385150167,1757674232734,-480.0,0.00013698,2]
[385150168,1757674232744,-480.0,0.00013698,2]
[385150169,1757674232753,-489.78538899,0.00013698,2]
[385150170,1757674232763,-480.0,0.00013698,2]
[385150171,1757674232772,-480.0,0.00013698,2]
[385150172,1757674232781,-480.0,0.00013698,2]
[385150173,1757674232790,-480.0,0.00013698,2]
[385150174,1757674232800,-480.0,0.00013698,2]
[385150175,1757674232809,-1000.0,0.00013698,2]
[385150176,1757674232818,-480.0,0.00013698,2]
[385150177,1757674232827,-493.65732287,0.00013698,2]
[385150178,1757674232835,-480.0,0.00013698,2]
[385150179,1757674232844,-480.0,0.00013698,2]
[385150180,1757674232855,-500.0,0.00013698,2]
[385150182,1757674232864,-467.91463731,0.00013698,2]
[385150184,1757674232873,-369.4033403,0.00013698,2]
[385150185,1757674232882,-480.0,0.00013698,2]
[385150188,1757674232891,-480.0,0.00013698,2]
[385150189,1757674232901,-500.0,0.00013698,2]
[385150191,1757674232910,-500.0,0.00013698,2]
[385150193,1757674232920,-500.0,0.00013698,2]
[385150194,1757674232930,-500.0,0.00013698,2]
[385150196,1757674232939,-480.0,0.00013698,2]
[385150198,1757674232948,-480.0,0.00013698,2]
[385150200,1757674232958,-480.0,0.00013698,2]
[385150202,1757674232968,-480.0,0.00013698,2]
[385150205,1757674232978,-480.0,0.00013698,2]
[385150207,1757674232987,-480.0,0.00013698,2]
[385150209,1757674232996,-480.0,0.00013698,2]
[385150211,1757674233006,-480.0,0.00013698,2]
[385150213,1757674233015,-480.0,0.00013698,2]
[385150215,1757674233025,-209.38653475,0.00013698,2]
[385150217,1757674233034,-480.0,0.00013698,2]
[385150219,1757674233043,-482.9095256,0.00013698,2]
[385150221,1757674233052,-480.0,0.00013698,2]
[385150223,1757674233062,-480.0,0.00013698,2]
[385150225,1757674233072,-480.0,0.00013698,2]
[385150227,1757674233083,-486.14540909,0.00013698,2]
[385150229,1757674233092,-480.0,0.00013698,2]
[385150231,1757674233104,-492.13407604,0.00013698,2]
[385150233,1757674233113,-480.0,0.00013698,2]
[385150235,1757674233123,-484.91629434,0.00013698,2]
[385150237,1757674233132,-480.0,0.00013698,2]
[385150239,1757674233142,-480.0,0.00013698,2]
[385150241,1757674233152,-480.0,0.00013698,2]
[385150243,1757674233162,-480.0,0.00013698,2]
[385150245,1757674233172,-55.45275697,0.00013698,2]
[385150263,1757674233331,-424.54724303,0.00013698,2]
[385150265,1757674233341,-483.11372983,0.00013698,2]
[385150267,1757674233351,-40.6374245,0.00013698,2]
[385150269,1757674233364,-439.3625755,0.00013698,2]
[385150271,1757674233373,-480.0,0.00013698,2]
[385150273,1757674233384,-480.0,0.00013698,2]
[385150275,1757674233394,-480.88007414,0.00013698,2]
[385150277,1757674233404,-317.51676634,0.00013698,2]
[385150280,1757674233417,-162.48323366,0.00013698,2]
[385150282,1757674233427,-487.36226338,0.00013698,2]
[385150284,1757674233436,-480.0,0.00013698,2]
[385150286,1757674233445,-480.0,0.00013698,2]
[385150288,1757674233454,-480.0,0.00013698,2]
[385150290,1757674233463,-480.0,0.00013698,2]
[385150292,1757674233472,-481.1776793,0.00013698,2]
[385150294,1757674233481,-480.0,0.00013698,2]
[385150296,1757674233491,-480.0,0.00013698,2]
[385150298,1757674233499,-480.0,0.00013698,2]
[385150300,1757674233509,-480.0,0.00013698,2]
[385150302,1757674233519,-480.0,0.00013698,2]
[385150304,1757674233528,-480.0,0.00013698,2]
[385150305,1757674233537,-480.0,0.00013698,2]
[385150307,1757674233547,-480.0,0.00013698,2]
[385150310,1757674233557,-480.0,0.00013698,2]
[385150311,1757674233566,-238.11094802,0.00013698,2]
[385150314,1757674233577,-480.0,0.00013698,2]
[385150316,1757674233588,-172.17624618,0.00013698,2]
[385150730,1757674237788,-307.82375382,0.00013698,2]
[385150732,1757674237798,-500.0,0.00013698,2]
[385150734,1757674237807,-480.0,0.00013698,2]
[385150736,1757674237816,-483.18616691,0.00013698,2]
[385150738,1757674237825,-480.0,0.00013698,2]
[385150740,1757674237834,-480.0,0.00013698,2]
[385150742,1757674237843,-480.0,0.00013698,2]
[385150744,1757674237854,-480.0,0.00013698,2]
[385150746,1757674237864,-480.0,0.00013698,2]
[385150748,1757674237873,-480.0,0.00013698,2]
[385150750,1757674237882,-480.0,0.00013698,2]
[385150752,1757674237892,-480.0,0.00013698,2]
[385150754,1757674237901,-491.61909584,0.00013698,2]
[385150756,1757674237911,-480.0,0.00013698,2]
[385150758,1757674237920,-480.0,0.00013698,2]
[385150760,1757674237929,-480.0,0.00013698,2]
[385150762,1757674237938,-480.0,0.00013698,2]
[385150764,1757674237948,-480.0,0.00013698,2]
[385150766,1757674237957,-486.07950589,0.00013698,2]
[385150768,1757674237965,-388.52995406,0.00013698,2]
[385150770,1757674237974,-480.0,0.00013698,2]
[385150772,1757674237984,-480.0,0.00013698,2]
[385150774,1757674237993,-480.0,0.00013698,2]
[385150776,1757674238002,-480.0,0.00013698,2]
[385150778,1757674238011,-480.0,0.00013698,2]
[385150780,1757674238020,-480.0,0.00013698,2]
[385150782,1757674238029,-480.0,0.00013698,2]
[385150784,1757674238038,-480.0,0.00013698,2]
[385150786,1757674238047,-480.0,0.00013698,2]
[385150788,1757674238056,-483.448295,0.00013698,2]
[385150790,1757674238065,-480.0,0.00013698,2]
[385150792,1757674238074,-480.0,0.00013698,2]
[385150794,1757674238083,-480.0,0.00013698,2]
[385150796,1757674238094,-484.97376516,0.00013698,2]
[385150798,1757674238103,-480.0,0.00013698,2]
[385150800,1757674238112,-480.0,0.00013698,2]
[385150802,1757674238121,-480.0,0.00013698,2]
[385150804,1757674238130,-480.0,0.00013698,2]
[385150806,1757674238139,-480.0,0.00013698,2]
[385150808,1757674238149,-480.0,0.00013698,2]
[385150810,1757674238158,-480.0,0.00013698,2]
[385150812,1757674238167,-480.0,0.00013698,2]
[385150814,1757674238176,-276.3920233,0.00013698,2]
[385150815,1757674238186,-480.0,0.00013698,2]
[385150817,1757674238195,-481.66034303,0.00013698,2]
[385150819,1757674238205,-480.0,0.00013698,2]
[385150821,1757674238214,-480.0,0.00013698,2]
[385150823,1757674238223,-480.0,0.00013698,2]
[385150825,1757674238232,-480.0,0.00013698,2]
[385150827,1757674238241,-480.0,0.00013698,2]
[385150829,1757674238250,-480.0,0.00013698,2]
[385150831,1757674238260,-480.0,0.00013698,2]
[385150833,1757674238270,-480.0,0.00013698,2]
[385150835,1757674238279,-480.0,0.00013698,2]
[385150837,1757674238288,-489.58326246,0.00013698,2]
[385150839,1757674238298,-480.0,0.00013698,2]
[385150841,1757674238307,-480.0,0.00013698,2]
[385150843,1757674238316,-480.0,0.00013698,2]
[385150845,1757674238325,-480.0,0.00013698,2]
[385150847,1757674238335,-480.0,0.00013698,2]
[385150849,1757674238344,-480.0,0.00013698,2]
[385150851,1757674238354,-480.0,0.00013698,2]
[385150853,1757674238363,-480.0,0.00013698,2]
[385150855,1757674238374,-480.0,0.00013698,2]
[385150857,1757674238384,-480.0,0.00013698,2]
[385150859,1757674238393,-480.0,0.00013698,2]
[385150861,1757674238402,-426.29197751,0.00013698,2]
[385150863,1757674238411,-487.63608862,0.00013698,2]
[385150865,1757674238421,-480.0,0.00013698,2]
[385150867,1757674238430,-480.0,0.00013698,2]
[385150869,1757674238439,-480.0,0.00013698,2]
[385150871,1757674238451,-480.0,0.00013698,2]
[385150874,1757674238464,-480.0,0.00013698,2]
[385150876,1757674238478,-480.0,0.00013698,2]
[385150879,1757674238492,-480.0,0.00013698,2]
[385150881,1757674238504,-480.0,0.00013698,2]
[385150883,1757674238515,-413.92213104,0.00013698,2]
[385150886,1757674238529,-480.0,0.00013698,2]
[385150888,1757674238542,-480.0,0.00013698,2]